fUST/lending_fUST_20251018
["ID","MTS","AMOUNT","RATE_DAILY","PERIOD"]
[391672449,1760724648304,-500.0,0.00030137,2]
[391672451,1760724648314,-500.0,0.00030137,2]
[391672453,1760724648324,-500.0,0.00030137,2]
[391672456,1760724648334,-500.0,0.00030137,2]
[391672458,1760724648344,-500.0,0.00030137,2]
[391672460,1760724648353,-500.0,0.00030137,2]
[391672462,1760724648363,-500.0,0.00030137,2]
[391672464,1760724648373,-500.0,0.00030137,2]
[391672466,1760724648383,-500.0,0.00030137,2]
[391672468,1760724648397,-500.0,0.00030137,2]
[391672470,1760724648408,-500.0,0.00030137,2]
[391672472,1760724648420,-500.0,0.00030137,2]
[391672474,1760724648432,-500.0,0.00030137,2]
[391672482,1760724648559,-500.0,0.00030137,2]
[391672484,1760724648570,-500.0,0.00030137,2]
[391672486,1760724648580,-500.0,0.00030137,2]
[391672488,1760724648590,-500.0,0.00030137,2]
[391672489,1760724648600,-500.0,0.00030137,2]
[391672490,1760724648609,-500.0,0.00030137,2]
[391672491,1760724648619,-500.0,0.00030137,2]
[391672493,1760724648628,-500.0,0.00030137,2]
[391672495,1760724648638,-500.0,0.00030137,2]
[391672497,1760724648647,-500.0,0.00030137,2]
[391672499,1760724648658,-500.0,0.00030137,2]
[391672500,1760724648667,-500.0,0.00030137,2]
[391672501,1760724648677,-500.0,0.00030137,2]
[391672502,1760724648687,-500.0,0.00030137,2]
[391672503,1760724648697,-500.0,0.00030137,2]
[391672504,1760724648707,-500.0,0.00030137,2]
[391672505,1760724648717,-500.0,0.00030137,2]
[391672506,1760724648728,-500.0,0.00030137,2]
[391672507,1760724648738,-151.0,0.00030137,30]
[391672509,1760724648747,-500.0,0.00030137,2]
[391672510,1760724648757,-500.0,0.00030137,2]
[391672511,1760724648766,-500.0,0.00030137,2]
[391672512,1760724648776,-500.0,0.00030137,2]
[391672513,1760724648786,-500.0,0.00030137,2]
[391672514,1760724648796,-500.0,0.00030137,2]
[391672516,1760724648805,-500.0,0.00030137,2]
[391672517,1760724648815,-500.0,0.00030137,2]
[391672518,1760724648824,-500.0,0.00030137,2]
[391672520,1760724648833,-500.0,0.00030137,2]
[391672522,1760724648842,-500.0,0.00030137,2]
[391672524,1760724648851,-500.0,0.00030137,2]
[391672526,1760724648860,-500.0,0.00030137,2]
[391672528,1760724648868,-493.46071661,0.00030137,2]
[391672530,1760724648878,-500.0,0.00030137,2]
[391672532,1760724648886,-151.0,0.00030137,30]
[391672534,1760724648895,-151.0,0.00030137,30]
[391672535,1760724648904,-969.0,0.00030146,7]
[391672537,1760724648919,-460.0,0.00030164,2]
[391672539,1760724648928,-500.0,0.00030173,5]
[391672541,1760724648937,-263.16130294,0.00030173,5]
[391672542,1760724648946,-500.0,0.00030173,5]
[391672543,1760724648956,-250.67814024,0.00030173,2]
[391672544,1760724648966,-500.0,0.00030173,5]
[391672545,1760724648976,-3000.0,0.000302,3]
[391672546,1760724648995,-271.956981,0.000302,4]
[391672547,1760724649005,-155.530121,0.000302,4]
[391672548,1760724649014,-150.0,0.000302,10]
[391672549,1760724649024,-3000.0,0.0003021,3]
[391672551,1760724649033,-3335.643244,0.0003022,3]
[391672552,1760724649043,-500.0,0.00030273,2]
[391672554,1760724649052,-500.0,0.00030286,10]
[391672556,1760724649061,-166.0,0.00030289,2]
[391672558,1760724649070,-209.40437684,0.00030289,2]
[391672560,1760724649080,-2000.0,0.00030316,5]
[391672562,1760724649089,-1024.983143,0.0003038,5]
[391672564,1760724649098,-150.0,0.000304,5]
[391672565,1760724649108,-1000.0,0.000304,5]
[391672566,1760724649117,-2426.51,0.000304,2]
[391672567,1760724649126,-500.0,0.0003041,2]
[391672568,1760724649135,-500.0,0.0003041,5]
[391672569,1760724649144,-500.0,0.0003041,5]
[391672570,1760724649154,-500.0,0.0003041,5]
[391672571,1760724649167,-508.43397608,0.0003041,5]
[391672572,1760724649177,-603.94031266,0.0003041,5]
[391672574,1760724649187,-500.0,0.0003041,5]
[391672575,1760724649196,-1000.0,0.0003041,2]
[391672576,1760724649206,-567.33857646,0.0003041,5]
[391672577,1760724649216,-500.0,0.0003041,5]
[391672578,1760724649226,-1383.67,0.0003041,5]
[391672579,1760724649236,-500.0,0.0003041,5]
[391672580,1760724649245,-500.0,0.0003041,5]
[391672581,1760724649255,-622.67,0.0003041,5]
[391672582,1760724649265,-500.0,0.0003041,5]
[391672583,1760724649274,-1116.32,0.0003041,5]
[391672584,1760724649284,-500.0,0.0003041,5]
[391672585,1760724649293,-500.0,0.0003041,5]
[391672586,1760724649303,-500.0,0.0003041,5]
[391672587,1760724649313,-4876.64,0.0003041,5]
[391672588,1760724649323,-500.0,0.0003041,5]
[391672589,1760724649332,-500.0,0.0003041,5]
[391672590,1760724649342,-2483.49,0.0003041,5]
[391672591,1760724649351,-509.66348862,0.0003041,5]
[391672592,1760724649361,-500.0,0.0003041,5]
[391672593,1760724649371,-500.0,0.0003041,5]
[391672594,1760724649380,-606.34,0.0003041,5]
[391672595,1760724649390,-500.0,0.0003041,5]
[391672596,1760724649399,-500.0,0.0003041,5]
[391672597,1760724649415,-500.0,0.0003041,5]
[391672598,1760724649425,-624.44,0.0003041,5]
[391672599,1760724649435,-513.13469443,0.0003041,5]
[391672600,1760724649447,-500.0,0.0003041,5]
[391672601,1760724649456,-500.0,0.0003041,5]
[391672602,1760724649466,-500.0,0.0003041,5]
[391672603,1760724649475,-500.0,0.0003041,5]
[391672604,1760724649485,-1826.15,0.0003041,2]
[391672605,1760724649494,-500.0,0.0003041,5]
[391672606,1760724649503,-500.0,0.0003041,5]
[391672607,1760724649511,-785.68,0.0003041,5]
[391672608,1760724649521,-500.0,0.0003041,5]
[391672609,1760724649531,-500.0,0.0003041,5]
[391672610,1760724649540,-508.28451569,0.0003041,5]
[391672611,1760724649550,-500.0,0.0003041,5]
[391672612,1760724649559,-500.0,0.0003041,5]
[391672613,1760724649569,-500.0,0.0003041,5]
[391672614,1760724649578,-515.98122804,0.0003041,5]
[391672615,1760724649587,-500.0,0.0003041,5]
[391672616,1760724649597,-500.0,0.0003041,5]
[391672617,1760724649606,-500.0,0.0003041,5]
[391672618,1760724649615,-895.98,0.0003041,5]
[391672619,1760724649625,-506.51620412,0.0003041,5]
[391672620,1760724649634,-4958.33,0.0003041,5]
[391672621,1760724649643,-500.0,0.0003041,5]
[391672622,1760724649653,-500.0,0.0003041,5]
[391672623,1760724649666,-510.58414207,0.0003041,5]
[391672624,1760724649675,-300.40955326,0.0003041,5]
[391672625,1760724649686,-500.0,0.0003041,2]
[391672626,1760724649696,-500.0,0.0003041,5]
[391672627,1760724649705,-500.0,0.0003041,5]
[391672628,1760724649715,-500.0,0.0003041,5]
[391672629,1760724649724,-5210.72,0.0003041,5]
[391672630,1760724649734,-500.0,0.0003041,5]
[391672631,1760724649743,-518.86,0.0003041,5]
[391672632,1760724649753,-805.93,0.0003041,5]
[391672633,1760724649763,-500.0,0.0003041,5]
[391672634,1760724649772,-1000.0,0.0003041,2]
[391672635,1760724649782,-500.0,0.0003041,5]
[391672636,1760724649791,-500.0,0.0003041,5]
[391672637,1760724649800,-500.0,0.0003041,5]
[391672638,1760724649809,-656.71,0.0003041,3]
[391672639,1760724649819,-529.54,0.0003041,5]
[391672640,1760724649828,-500.0,0.0003041,5]
[391672641,1760724649837,-678.35,0.0003041,5]
[391672642,1760724649847,-500.0,0.0003041,5]
[391672643,1760724649856,-545.0,0.0003041,5]
[391672644,1760724649866,-2386.99,0.0003041,5]
[391672645,1760724649875,-500.0,0.0003041,5]
[391672646,1760724649885,-500.0,0.0003041,5]
[391672647,1760724649895,-500.0,0.0003041,5]
[391672648,1760724649904,-500.0,0.0003041,5]
[391672649,1760724649920,-500.0,0.0003041,5]
[391672650,1760724649929,-5093.68,0.0003041,5]
[391672651,1760724649939,-647.06,0.0003041,5]
[391672652,1760724649948,-500.0,0.0003041,5]
[391672653,1760724649958,-500.0,0.0003041,5]
[391672654,1760724649967,-500.0,0.0003041,5]
[391672655,1760724649977,-500.0,0.0003041,5]
[391672656,1760724649986,-500.0,0.0003041,5]
[391672657,1760724649996,-500.0,0.0003041,5]
[391672658,1760724650006,-500.0,0.0003041,5]
[391672659,1760724650016,-500.0,0.0003041,5]
[391672660,1760724650026,-500.0,0.0003041,5]
[391672661,1760724650036,-500.0,0.0003041,7]
[391672662,1760724650046,-500.0,0.0003041,5]
[391672663,1760724650055,-500.0,0.0003041,5]
[391672664,1760724650065,-500.0,0.0003041,5]
[391672665,1760724650075,-500.0,0.0003041,5]
[391672666,1760724650084,-9395.89,0.0003041,5]
[391672667,1760724650094,-500.0,0.0003041,5]
[391672668,1760724650103,-500.0,0.0003041,5]
[391672669,1760724650113,-513.27542253,0.0003041,5]
[391672670,1760724650123,-500.0,0.0003041,2]
[391672671,1760724650132,-500.0,0.0003041,5]
[391672672,1760724650142,-500.0,0.0003041,5]
[391672673,1760724650151,-397.68581499,0.0003041,5]
[391672674,1760724650162,-500.0,0.0003041,5]
[391672675,1760724650172,-500.0,0.0003041,5]
[391672676,1760724650182,-500.0,0.0003041,5]
[391672677,1760724650192,-500.0,0.0003041,5]
[391672678,1760724650202,-345.5386911,0.0003041,5]
[391672679,1760724650211,-500.0,0.0003041,5]
[391672680,1760724650221,-500.0,0.0003041,5]
[391672681,1760724650231,-500.0,0.0003041,5]
[391672682,1760724650240,-500.0,0.0003041,5]
[391672683,1760724650249,-500.0,0.0003041,5]
[391672684,1760724650260,-1500.0,0.0003041,15]
[391672685,1760724650269,-1500.0,0.0003041,15]
[391672686,1760724650279,-500.0,0.0003041,5]
[391672687,1760724650288,-318.49,0.00030411,17]
[391672688,1760724650298,-250.0,0.00030412,2]
[391672689,1760724650307,-250.0,0.00030412,2]
[391672690,1760724650316,-150.524,0.00030412,2]
[391672691,1760724650325,-229.62,0.00030412,2]
[391672692,1760724650334,-287.487,0.00030412,2]
[391672693,1760724650344,-263.953,0.00030412,2]
[391672694,1760724650353,-296.154,0.00030412,2]
[391672695,1760724650363,-211.888,0.00030412,2]
[391672696,1760724650373,-3000.0,0.00030412,5]
[391672697,1760724650383,-150.0,0.00030473,5]
[391672698,1760724650392,-150.0,0.00030473,5]
[391672699,1760724650402,-161.73935046,0.00030473,5]
[391672700,1760724650413,-40156.43416474,0.0003049,14]
[391672701,1760724650423,-355.31,0.00030493,120]
[391672702,1760724650433,-271.956981,0.000305,15]
[391672703,1760724650442,-155.530121,0.000305,15]
[391672704,1760724650452,-501.17934736,0.00030521,5]
[391672705,1760724650461,-805.0,0.00030528,2]
[391672706,1760724650471,-572.3351755,0.00030547,2]
[391672707,1760724650480,-805.0,0.00030555,2]
[391672708,1760724650490,-151.0,0.00030555,30]
[391672709,1760724650499,-151.0,0.00030555,30]
[391672710,1760724650509,-151.0,0.00030555,30]
[391672711,1760724650518,-255.148647,0.00030555,30]
[391672712,1760724650528,-500.0,0.0003056,10]
[391672713,1760724650538,-4250.81,0.00030579,8]
[391672714,1760724650547,-352.5,0.00030605,2]
[391672715,1760724650557,-300.0,0.00030642,7]
[391672716,1760724650566,-500.0,0.00030684,5]
[391672717,1760724650575,-500.0,0.00030684,5]
[391672718,1760724650585,-500.0,0.00030684,5]
[391672719,1760724650594,-500.0,0.00030684,5]
[391672720,1760724650604,-1000.0,0.00030684,2]
[391672721,1760724650614,-500.0,0.00030684,5]
[391672722,1760724650623,-1383.67,0.00030684,5]
[391672723,1760724650633,-500.0,0.00030684,5]
[391672724,1760724650642,-500.0,0.00030684,5]
[391672725,1760724650651,-622.67,0.00030684,5]
[391672726,1760724650662,-500.0,0.00030684,5]
[391672727,1760724650671,-1116.32,0.00030684,5]
[391672728,1760724650681,-500.0,0.00030684,5]
[391672729,1760724650690,-500.0,0.00030684,5]
[391672730,1760724650699,-500.0,0.00030684,5]
[391672731,1760724650709,-4876.64,0.00030684,5]
[391672732,1760724650718,-500.0,0.00030684,5]
[391672733,1760724650728,-500.0,0.00030684,5]
[391672734,1760724650737,-2483.49,0.00030684,5]
[391672735,1760724650746,-500.0,0.00030684,5]
[391672736,1760724650756,-606.34,0.00030684,5]
[391672737,1760724650765,-500.0,0.00030684,5]
[391672738,1760724650774,-500.0,0.00030684,5]
[391672739,1760724650784,-500.0,0.00030684,5]
[391672740,1760724650793,-624.44,0.00030684,5]
[391672741,1760724650803,-500.0,0.00030684,5]
[391672742,1760724650813,-500.0,0.00030684,5]
[391672743,1760724650823,-500.0,0.00030684,5]
[391672744,1760724650832,-500.0,0.00030684,5]
[391672745,1760724650841,-1826.15,0.00030684,2]
[391672746,1760724650851,-500.0,0.00030684,5]
[391672747,1760724650860,-500.0,0.00030684,5]
[391672748,1760724650870,-785.68,0.00030684,5]
[391672749,1760724650879,-500.0,0.00030684,5]
[391672750,1760724650894,-500.0,0.00030684,5]
[391672751,1760724650903,-500.0,0.00030684,5]
[391672752,1760724650917,-516.41584702,0.00030684,5]
[391672753,1760724650927,-500.0,0.00030684,5]
[391672754,1760724650937,-500.0,0.00030684,5]
[391672755,1760724650947,-500.0,0.00030684,5]
[391672756,1760724650957,-500.0,0.00030684,5]
[391672757,1760724650967,-895.98,0.00030684,5]
[391672758,1760724650976,-4958.33,0.00030684,5]
[391672759,1760724650987,-500.0,0.00030684,5]
[391672760,1760724650996,-505.84514754,0.00030684,5]
[391672761,1760724651006,-500.0,0.00030684,2]
[391672762,1760724651015,-500.0,0.00030684,5]
[391672763,1760724651024,-500.0,0.00030684,5]
[391672764,1760724651033,-500.0,0.00030684,5]
[391672765,1760724651043,-5210.72,0.00030684,5]
[391672766,1760724651053,-500.0,0.00030684,5]
[391672767,1760724651062,-518.86,0.00030684,5]
[391672768,1760724651072,-805.93,0.00030684,5]
[391672769,1760724651082,-500.0,0.00030684,5]
[391672770,1760724651091,-1000.0,0.00030684,2]
[391672771,1760724651101,-500.0,0.00030684,5]
[391672772,1760724651111,-500.0,0.00030684,5]
[391672773,1760724651121,-500.0,0.00030684,5]
[391672774,1760724651131,-656.71,0.00030684,3]
[391672775,1760724651140,-529.54,0.00030684,5]
[391672776,1760724651150,-500.0,0.00030684,5]
[391672777,1760724651160,-678.35,0.00030684,5]
[391672778,1760724651171,-500.0,0.00030684,5]
[391672779,1760724651181,-545.0,0.00030684,5]
[391672780,1760724651190,-2386.99,0.00030684,5]
[391672781,1760724651199,-500.0,0.00030684,5]
[391672782,1760724651209,-500.0,0.00030684,5]
[391672783,1760724651219,-500.0,0.00030684,5]
[391672784,1760724651228,-500.0,0.00030684,5]
[391672785,1760724651237,-500.0,0.00030684,5]
[391672786,1760724651247,-5093.68,0.00030684,5]
[391672787,1760724651257,-647.06,0.00030684,5]
[391672788,1760724651266,-500.0,0.00030684,5]
[391672789,1760724651275,-500.0,0.00030684,5]
[391672790,1760724651284,-266.512698,0.00030684,30]
[391672791,1760724651294,-500.0,0.00030684,5]
[391672792,1760724651303,-266.512698,0.00030684,30]
[391672793,1760724651313,-266.512698,0.00030684,30]
[391672794,1760724651322,-266.512698,0.00030684,30]
[391672795,1760724651332,-500.0,0.00030684,5]
[391672796,1760724651342,-500.0,0.00030684,5]
[391672797,1760724651351,-500.0,0.00030684,5]
[391672798,1760724651360,-500.0,0.00030684,5]
[391672799,1760724651370,-500.0,0.00030684,5]
[391672800,1760724651379,-500.0,0.00030684,5]
[391672801,1760724651388,-500.0,0.00030684,5]
[391672802,1760724651398,-500.0,0.00030684,5]
[391672803,1760724651407,-500.0,0.00030684,5]
[391672804,1760724651420,-500.0,0.00030684,5]
[391672805,1760724651430,-9395.89,0.00030684,5]
[391672806,1760724651439,-500.0,0.00030684,5]
[391672807,1760724651449,-500.0,0.00030684,5]
[391672808,1760724651458,-164.033396,0.00030684,30]
[391672809,1760724651467,-164.033396,0.00030684,30]
[391672810,1760724651476,-164.033396,0.00030684,30]
[391672811,1760724651486,-164.033396,0.00030684,30]
[391672812,1760724651496,-500.0,0.00030684,2]
[391672813,1760724651505,-500.0,0.00030684,5]
[391672814,1760724651514,-500.0,0.00030684,5]
[391672815,1760724651523,-500.0,0.00030684,5]
[391672816,1760724651533,-500.0,0.00030684,5]
[391672817,1760724651542,-500.0,0.00030684,5]
[391672818,1760724651551,-500.0,0.00030684,5]
[391672819,1760724651560,-534.20818382,0.00030684,5]
[391672820,1760724651675,-500.0,0.00030684,5]
[391672821,1760724651686,-500.0,0.00030684,5]
[391672822,1760724651695,-500.0,0.00030684,5]
[391672823,1760724651705,-318.49,0.00030685,18]
[391672824,1760724651714,-8727.28602829,0.000307,2]
[391672825,1760724651724,-560.0,0.00030712,2]
[391672826,1760724651734,-254.5,0.00030738,2]
[391672827,1760724651743,-25285.53,0.000308,7]
[391672828,1760724651752,-402.69031254,0.000308,7]
[391672829,1760724651762,-417.128762,0.00030834,10]
[391672830,1760724651772,-166.0,0.00030837,2]
[391672831,1760724651782,-217.15233878,0.00030837,2]
[391672832,1760724651791,-805.0,0.00030838,2]
[391672833,1760724651801,-2500.0,0.00030864,5]
[391672834,1760724651811,-6000.0,0.00030886,4]
[391672835,1760724651820,-805.0,0.00030943,2]
[391672836,1760724651829,-500.0,0.00030958,5]
[391672837,1760724651839,-500.0,0.00030958,5]
[391672838,1760724651848,-500.0,0.00030958,5]
[391672839,1760724651858,-500.0,0.00030958,5]
[391672840,1760724651867,-1000.0,0.00030958,2]
[391672841,1760724651876,-500.0,0.00030958,5]
[391672842,1760724651885,-1383.67,0.00030958,5]
[391672843,1760724651895,-500.0,0.00030958,5]
[391672844,1760724651904,-500.0,0.00030958,5]
[391672845,1760724651915,-622.67,0.00030958,5]
[391672846,1760724651927,-500.0,0.00030958,5]
[391672847,1760724651936,-1116.32,0.00030958,5]
[391672848,1760724651945,-500.0,0.00030958,5]
[391672849,1760724651955,-500.0,0.00030958,5]
[391672850,1760724651965,-500.0,0.00030958,5]
[391672851,1760724651975,-4876.64,0.00030958,5]
[391672852,1760724651985,-500.0,0.00030958,5]
[391672853,1760724651996,-500.0,0.00030958,5]
[391672854,1760724652005,-2483.49,0.00030958,5]
[391672855,1760724652015,-500.0,0.00030958,5]
[391672856,1760724652025,-606.34,0.00030958,5]
[391672857,1760724652034,-500.0,0.00030958,5]
[391672858,1760724652044,-500.0,0.00030958,5]
[391672859,1760724652054,-500.0,0.00030958,5]
[391672860,1760724652064,-624.44,0.00030958,5]
[391672861,1760724652073,-500.0,0.00030958,5]
[391672862,1760724652084,-500.0,0.00030958,5]
[391672863,1760724652094,-500.0,0.00030958,5]
[391672864,1760724652104,-500.0,0.00030958,5]
[391672865,1760724652114,-1826.15,0.00030958,2]
[391672866,1760724652124,-500.0,0.00030958,5]
[391672867,1760724652133,-500.0,0.00030958,5]
[391672868,1760724652143,-785.68,0.00030958,5]
[391672869,1760724652153,-500.0,0.00030958,5]
[391672870,1760724652164,-500.0,0.00030958,5]
[391672871,1760724652174,-500.0,0.00030958,5]
[391672872,1760724652184,-500.0,0.00030958,5]
[391672873,1760724652194,-500.0,0.00030958,5]
[391672874,1760724652204,-508.29123297,0.00030958,5]
[391672875,1760724652214,-500.0,0.00030958,5]
[391672876,1760724652224,-895.98,0.00030958,5]
[391672877,1760724652234,-4958.33,0.00030958,5]
[391672878,1760724652244,-500.0,0.00030958,5]
[391672879,1760724652254,-500.0,0.00030958,2]
[391672880,1760724652264,-500.0,0.00030958,5]
[391672881,1760724652274,-500.0,0.00030958,5]
[391672882,1760724652283,-476.41650406,0.00030958,5]
[391672883,1760724652292,-5210.72,0.00030958,5]
[391672884,1760724652302,-500.0,0.00030958,5]
[391672885,1760724652311,-518.86,0.00030958,5]
[391672886,1760724652321,-805.93,0.00030958,5]
[391672887,1760724652330,-609.41248242,0.00030958,5]
[391672888,1760724652340,-1000.0,0.00030958,2]
[391672889,1760724652350,-500.0,0.00030958,5]
[391672890,1760724652360,-500.0,0.00030958,5]
[391672891,1760724652369,-500.0,0.00030958,5]
[391672892,1760724652379,-656.71,0.00030958,3]
[391672893,1760724652388,-529.54,0.00030958,5]
[391672894,1760724652397,-500.0,0.00030958,5]
[391672895,1760724652407,-678.35,0.00030958,5]
[391672896,1760724652419,-500.0,0.00030958,5]
[391672897,1760724652429,-545.0,0.00030958,5]
[391672898,1760724652438,-2386.99,0.00030958,5]
[391672899,1760724652447,-500.0,0.00030958,5]
[391672900,1760724652457,-500.0,0.00030958,5]
[391672901,1760724652466,-500.0,0.00030958,5]
[391672902,1760724652475,-500.0,0.00030958,5]
[391672903,1760724652485,-500.0,0.00030958,5]
[391672904,1760724652495,-5093.68,0.00030958,5]
[391672905,1760724652504,-647.06,0.00030958,5]
[391672906,1760724652513,-500.0,0.00030958,5]
[391672907,1760724652523,-500.0,0.00030958,5]
[391672908,1760724652532,-500.0,0.00030958,5]
[391672909,1760724652543,-508.61902696,0.00030958,5]
[391672910,1760724652553,-500.0,0.00030958,5]
[391672911,1760724652563,-500.0,0.00030958,5]
[391672912,1760724652572,-500.0,0.00030958,5]
[391672913,1760724652582,-500.0,0.00030958,5]
[391672914,1760724652592,-500.0,0.00030958,5]
[391672915,1760724652602,-500.0,0.00030958,5]
[391672916,1760724652612,-281.19989303,0.00030958,5]
[391672917,1760724652621,-503.86798881,0.00030958,5]
[391672918,1760724652631,-500.0,0.00030958,5]
[391672919,1760724652641,-9395.89,0.00030958,5]
[391672920,1760724652651,-500.0,0.00030958,5]
[391672921,1760724652661,-327.78645102,0.00030958,5]
[391672922,1760724652671,-500.0,0.00030958,2]
[391672923,1760724652680,-500.0,0.00030958,5]
[391672924,1760724652690,-500.0,0.00030958,5]
[391672925,1760724652699,-500.0,0.00030958,5]
[391672926,1760724652709,-500.0,0.00030958,5]
[391672927,1760724652718,-333.25732107,0.00030958,5]
[391672928,1760724652727,-500.0,0.00030958,5]
[391672929,1760724652736,-151.0,0.00030958,30]
[391672930,1760724652746,-500.0,0.00030958,5]
[391672931,1760724652755,-500.0,0.00030958,5]
[391672932,1760724652764,-151.0,0.00030958,30]
[391672933,1760724652773,-151.0,0.00030958,30]
[391672934,1760724652782,-500.0,0.00030958,5]
[391672935,1760724652792,-318.49,0.00030959,19]
[391672936,1760724652801,-3500.0,0.0003096,5]
[391672937,1760724652811,-303.41833869,0.0003099,2]
[391672938,1760724652820,-3980.0,0.00031,120]
[391672939,1760724652829,-300.0,0.00031,2]
[391672940,1760724652839,-402.69031254,0.00031,3]
[391672941,1760724652848,-250.0,0.00031021,5]
[391672942,1760724652858,-250.0,0.00031021,5]
[391672943,1760724652867,-969.0,0.00031035,2]
[391672944,1760724652877,-805.0,0.00031041,2]
[391672945,1760724652886,-154.33034444,0.00031068,30]
[391672946,1760724652896,-3826.07,0.000311,2]
[391672947,1760724652906,-2442.86803601,0.0003112,2]
[391672948,1760724652919,-375.0,0.00031205,2]
[391672949,1760724652928,-500.0,0.00031232,5]
[391672950,1760724652937,-500.0,0.00031232,5]
[391672951,1760724652946,-227.53502937,0.00031232,5]
[391672952,1760724652956,-524.51127157,0.00031232,5]
[391672953,1760724652966,-1000.0,0.00031232,2]
[391672954,1760724652975,-500.0,0.00031232,5]
[391672955,1760724652985,-1383.67,0.00031232,5]
[391672956,1760724652995,-500.0,0.00031232,5]
[391672957,1760724653005,-500.0,0.00031232,5]
[391672958,1760724653014,-622.67,0.00031232,5]
[391672959,1760724653024,-491.72776646,0.00031232,5]
[391672960,1760724653034,-1116.32,0.00031232,5]
[391672961,1760724653043,-500.0,0.00031232,5]
[391672962,1760724653053,-500.0,0.00031232,5]
[391672963,1760724653063,-500.0,0.00031232,5]
[391672964,1760724653072,-4876.64,0.00031232,5]
[391672965,1760724653082,-500.0,0.00031232,5]
[391672967,1760724653092,-500.0,0.00031232,5]
[391672968,1760724653101,-2483.49,0.00031232,5]
[391672969,1760724653111,-500.0,0.00031232,5]
[391672970,1760724653121,-606.34,0.00031232,5]
[391672971,1760724653130,-500.0,0.00031232,5]
[391672972,1760724653140,-500.0,0.00031232,5]
[391672973,1760724653150,-500.0,0.00031232,5]
[391672974,1760724653163,-624.44,0.00031232,5]
[391672975,1760724653173,-500.0,0.00031232,5]
[391672976,1760724653184,-500.0,0.00031232,5]
[391672977,1760724653194,-500.0,0.00031232,5]
[391672978,1760724653204,-500.0,0.00031232,5]
[391672979,1760724653214,-1826.15,0.00031232,2]
[391672980,1760724653224,-500.0,0.00031232,5]
[391672981,1760724653234,-500.0,0.00031232,5]
[391672982,1760724653245,-785.68,0.00031232,5]
[391672983,1760724653254,-500.0,0.00031232,5]
[391672984,1760724653264,-500.0,0.00031232,5]
[391672985,1760724653274,-500.0,0.00031232,5]
[391672986,1760724653284,-500.0,0.00031232,5]
[391672987,1760724653294,-514.33931203,0.00031232,5]
[391672988,1760724653304,-500.0,0.00031232,5]
[391672989,1760724653313,-895.98,0.00031232,5]
[391672990,1760724653323,-4958.33,0.00031232,5]
[391672991,1760724653333,-500.0,0.00031232,5]
[391672992,1760724653343,-500.0,0.00031232,2]
[391672993,1760724653353,-500.0,0.00031232,5]
[391672994,1760724653363,-500.0,0.00031232,5]
[391672995,1760724653372,-5210.72,0.00031232,5]
[391672996,1760724653382,-500.0,0.00031232,5]
[391672997,1760724653391,-518.86,0.00031232,5]